[Event "Polish Youth B18 Championship 2023"]
[Site "Jastrzebia Gora"]
[Date "2023.03.17"]
[Round "7.13"]
[White "Dziendziel, Mateusz"]
[Black "Krasniewski, Szymon"]
[Result "1-0"]
[ECO "B40"]
[WhiteElo "2084"]
[BlackElo "1771"]
[Annotator "TA"]
[PlyCount "105"]
[EventDate "2023.03.11"]
[EventType "swiss"]
[EventCountry "POL"]
[SourceTitle "playchess.com"]
[Source "ChessBase"]
[SourceQuality "1"]
[TimeControl "40/5400+30:1800+30"]

{[%evp 15,105,22,38,0,12,0,78,73,75,67,73,-202,-197,-191,-216,-206,-199,-439,-423,-438,-418,-475,-423,-387,-381,-328,-294,-280,-158,-158,-79,-87,-81,-88,-87,-121,-104,-165,-142,-104,-18,-20,0,0,0,-53,-53,-53,102,241,241,241,241,141,967,868,1182,1189,1075,1012,714,-18,12841,12841,12841,12840,12841,12841,12847,12845,12846,12845,12845,12845,12846,12846,12847,12848,12849,12849,12850,12846,12848,12847,12850,12847,12850,12850,12850,27999,27999,27999]} 1. e4 {[%emt 0:00:02]} c5 {[%emt 0:00:04]} 2. Nf3 {[%emt 0:00:03]} e6 {[%emt 0:00:02]} 3. d4 {[%emt 0:00:04]} cxd4 {[%emt 0:00:03]} 4. Nxd4 {[%emt 0:00:05]} Nf6 {[%emt 0:00:06][%cal Bg8f6,Bf6d5,Bd5b4,Bb4c2][%mdl 32]} 5. Nc3 {[%emt 0:00:05][%cal Bb1c3,Bc3e4,Be4d6][%mdl 32]} Nc6 {[%emt 0:00:02]} 6. Nxc6 {[%emt 0:00:11]} bxc6 {[%emt 0:00:04]} 7. e5 {[%emt 0:00:06]} Nd5 {[%emt 0:00:03]} 8. Ne4 {[%emt 0:00:06]} Bb7 {[%emt 0:00:15]} 9. c4 {[%emt 0:06:45] B45: Sicilian Four Knights.} Nb4 {[%emt 0:00:15]} 10. Bg5 {[%emt 0:27:14]} Qb8 {[%emt 0:12:45] Black is weak on the dark squares} (10... Qc7 $11 {keeps the balance.} 11. Bf4 c5) 11. Nd6+ $1 $16 {[%emt 0:03:14] White is better.} Bxd6 {[%emt 0:00:05]} 12. exd6 {[%emt 0:00:04]} c5 $1 {[%emt 0:01:50] [#] ...Be4 is the strong threat.} 13. Be3 $146 {[%emt 0:01:37][%mdl 8192]} (13. a3 $16 {and life is bright.} Nc6 14. Be3) ({Predecessor:} 13. a3 Nc6 14. Be3 O-O 15. Bxc5 e5 16. Bd3 e4 17. Be2 f5 18. O-O Ne5 19. Qb3 {1-0 Rocha,W (2434)-Barbosa,E (2279) Mineiro-ch Varginha 2009 (9)}) 13... Be4 $19 {[%emt 0:03:48]} 14. f3 {[%emt 0:18:55]} Nc2+ {[%emt 0:08:33][%mdl 64] Discovered Attack, Double Attack} 15. Kf2 {[%emt 0:00:06]} Qxb2 {[%emt 0:05:47]} 16. fxe4 $2 {[%emt 0:09:47]} (16. Be2 Qf6 17. Qc1) 16... Nxa1+ {[%emt 0:00:22][%mdl 64] Discovered Attack} (16... Qxa1 17. Qxa1 (17. Qxc2 Rb8 $11) 17... Nxa1 18. Bd3 $16 (18. Bxc5 Rb8 $17)) 17. Be2 {[%emt 0:03:23]} Nc2 {[%emt 0:01:39]} 18. Bxc5 {[%emt 0:02:42]} Rc8 {[%emt 0:04:15]} (18... Qxa2 $2 19. Qb1 Qa5 20. Qb5 $19) (18... Qe5 $2 19. Qxc2 Qxc5+ 20. Kg3 $19) 19. Bxa7 {[%emt 0:02:08]} Qxa2 {[%emt 0:01:38]} 20. Bb6 {[%emt 0:00:45]} Rb8 {[%emt 0:16:26]} 21. c5 {[%emt 0:03:10]} e5 {[%emt 0:17:59]} (21... Qb2 $19 {Threatens to win with ...f5.} 22. Qd2 Qf6+ 23. Kg3 Qe5+ 24. Qf4 Qc3+ 25. Kf2 Qd4+ 26. Kg3 Qc3+ 27. Kf2 Nd4) 22. Qd2 $17 {[%emt 0:05:09] Rc1 would be deadly.} Qb2 {[%emt 0:06:58]} (22... O-O $2 23. Rc1 $18) (22... Qa4 $142 $1 23. Qc3 O-O) 23. Rc1 {[%emt 0:06:40]} Qd4+ {[%emt 0:00:33]} 24. Qxd4 {[%emt 0:00:13]} Nxd4 {[%emt 0:00:04]} 25. Ra1 {[%emt 0:01:03]} O-O {[%emt 0:05:41]} 26. Bg4 {[%emt 0:01:47]} (26. Ra7 $17 {keeps fighting.} Ra8 27. Rxa8 (27. Rxd7 Ra2 $17) 27... Rxa8 28. Bg4 Ra2+ 29. Kg3) 26... f5 {[%emt 0:02:47]} 27. exf5 {[%emt 0:00:07]} g6 {[%emt 0:09:37]} (27... Nxf5 $17 {Hoping for ...Nh6+.} 28. Kg1 g6) 28. Ra7 $11 {[%emt 0:01:38]} gxf5 {[%emt 0:01:46]} (28... h5 $5 {[%cal Rh5g4]} 29. Bd1 Nxf5 30. Rxd7 Nxd6+ 31. Ke2 Ne4 32. Bb3+ Kh8 $11) 29. Bh5 {[%emt 0:00:11]} f4 {[%emt 0:00:56]} 30. Bf3 {[%emt 0:01:53] Prevents Ra8.} (30. Rxd7 $11 e4 31. Ra7 e3+ 32. Kf1) 30... Nxf3 $15 {[%emt 0:00:35]} 31. Kxf3 {[%emt 0:00:01][%mdl 4096] Endgame KRR-KRB} Rbe8 $2 {[%emt 0:00:25]} (31... Rf7 $15 {stays ahead.} 32. Ke4 Kg7 33. Kxe5 Re8+ 34. Kd5 Kf6) 32. Ke4 $1 $16 {[%emt 0:02:18] White has more active pieces.} (32. Rxd7 $6 e4+ 33. Kg4 e3 $11) 32... f3 {[%emt 0:00:30]} 33. gxf3 {[%emt 0:00:08]} Rf4+ {[%emt 0:00:21]} 34. Ke3 {[%emt 0:00:23]} Rb4 $2 {[%emt 0:00:32][%mdl 8192]} (34... Rf7 35. c6 dxc6 36. Rxf7 (36. d7 Ref8 $18) 36... Kxf7 37. d7 $18) (34... Rc4 $16) 35. Rxd7 $18 {[%emt 0:00:16][%cal Oc5c6] aiming for c6!} e4 {[%emt 0:00:11] [#]} 36. Rd8 $1 {[%emt 0:04:13]} Rb3+ {[%emt 0:00:24]} 37. Ke2 {[%emt 0:01:03]} (37. Kd4 Kf7 38. fxe4 Rxd8 39. Bxd8 Ke6 $18) 37... exf3+ {[%emt 0:00:21] [#]} 38. Kf2 $2 {[%emt 0:00:07]} ({White has to play} 38. Kf1 $1 $18 Rxd8 39. Bxd8 Rb1+ 40. Kf2) 38... Rxd8 {[%emt 0:00:28][%mdl 8192]} (38... Kf7 $11 39. Rxe8 Kxe8) 39. Bxd8 $11 {[%emt 0:00:07] KR-KB} Kf7 {[%emt 0:01:09]} 40. c6 {[%emt 0:00:00]} Ke6 {[%emt 0:00:00]} 41. d7 {[%emt 0:07:35]} Rd3 {[%emt 0:01:02]} 42. Ba5 {[%emt 0:00:43]} Ke7 {[%emt 0:00:45]} 43. h4 {[%emt 0:00:16]} (43. d8=R Rxd8 44. Bxd8+ Kxd8 $11) 43... Rd5 {[%emt 0:01:10]} 44. Bb6 {[%emt 0:00:08]} ({And not} 44. d8=R Rxd8 45. Bxd8+ Kxd8 $11) 44... Rd3 {[%emt 0:00:36]} 45. Bc7 {[%emt 0:00:12]} ({Weaker is} 45. d8=R Rxd8 46. Bxd8+ Kxd8 $11) 45... Rd1 {[%emt 0:01:06]} 46. Kxf3 {[%emt 0:00:06]} Rd3+ {[%emt 0:00:19]} 47. Ke4 {[%emt 0:00:12]} Rd1 {[%emt 0:00:28]} 48. Kf5 {[%emt 0:00:15]} Rd5+ {[%emt 0:00:12]} 49. Kg4 {[%emt 0:00:10]} Rd1 {[%emt 0:00:12]} 50. Bb6 {[%emt 0:00:26]} Rd5 {[%emt 0:00:22]} 51. d8=Q+ {[%emt 0:01:11]} Rxd8 {[%emt 0:00:06]} 52. Bxd8+ {[%emt 0:00:05]} Kxd8 {[%emt 0:00:02]} 53. Kg5 {[%emt 0:00:07] Never resign too early!   Weighted Error Value: White=0.49/Black=0.36} 1-0

[Event "Polish Youth B18 Championship 2023"]
[Site "Jastrzebia Gora"]
[Date "2023.03.17"]
[Round "7.14"]
[White "Budzisz, Adrian"]
[Black "Karut, Kacper"]
[Result "1/2-1/2"]
[ECO "D37"]
[WhiteElo "2069"]
[BlackElo "1904"]
[Annotator "TA"]
[PlyCount "95"]
[EventDate "2023.03.11"]
[EventType "swiss"]
[EventCountry "POL"]
[SourceTitle "playchess.com"]
[Source "ChessBase"]
[SourceQuality "1"]
[TimeControl "40/5400+30:1800+30"]

{[%evp 13,95,2,20,-16,-9,-36,-30,-41,-27,-203,-174,-204,-187,-193,0,0,0,-2,0,0,79,83,80,90,115,16,54,-33,5,-95,-96,-135,-135,-143,-118,-155,-133,-281,-245,-249,-275,-295,-275,-358,-1,-2,0,0,0,0,0,0,0,0,0,0,0,0,0,0,0,0,0,0,0,0,0,0,0,0,0,0,0,0,0,0,0,0,0,0,0,0,0,0]} 1. d4 {[%emt 0:00:03]} d5 {[%emt 0:00:15]} 2. Nf3 {[%emt 0:00:10]} Nf6 {[%emt 0:00:19]} 3. c4 {[%emt 0:00:21]} e6 {[%emt 0:00:12]} 4. Nc3 {[%emt 0:00:09]} Be7 {[%emt 0:03:15]} 5. e3 {[%emt 0:01:22]} O-O {[%emt 0:00:51]} 6. Bd3 {[%emt 0:00:42]} Nbd7 {[%emt 0:02:54]} 7. O-O {[%emt 0:00:50]} b6 {[%emt 0:04:18]} 8. Ne5 {[%emt 0:05:18] D37: Queen's Gambit Declined: 5 Bf4.} Bb7 {[%emt 0:11:43] Prevents Nc6} 9. f4 {[%emt 0:04:36]} dxc4 {[%emt 0:05:14]} 10. Bxc4 {[%emt 0:00:06] Black has an edge.} c5 {[%emt 0:04:47] [#]} 11. Nxf7 $146 {[%emt 0:07:21]} ({Predecessor:} 11. Ne2 cxd4 12. exd4 Rc8 13. Bd3 Qc7 14. Qe1 Rfd8 15. Qh4 Nf8 16. f5 Rxd4 17. Nxd4 Qxe5 {0-1 Buscar,M (2088)-Bazarov,K (2226) Titled Tuesday intern op 30th Nov blitz 2021 (8)}) 11... Kxf7 $19 {[%emt 0:08:39]} (11... Rxf7 12. Bxe6 cxd4 13. exd4 $15) 12. f5 {[%emt 0:07:16]} Kg8 {[%emt 0:05:08]} 13. fxe6 {[%emt 0:00:02]} Nb8 {[%emt 0:05:02]} (13... b5 $1 $19 {[%cal Rb5c4]} 14. Bxb5 Nb6) 14. d5 $11 {[%emt 0:00:19]} Ba6 $1 {[%emt 0:03:06]} 15. Bxa6 {[%emt 0:01:17]} Nxa6 {[%emt 0:00:20]} 16. e4 {[%emt 0:00:25]} Nb4 {[%emt 0:06:08]} (16... c4 $11 {keeps the balance.}) 17. a3 $16 {[%emt 0:03:53]} Nxe4 {[%emt 0:04:23][%mdl 64] Deflection} 18. Rxf8+ {[%emt 0:01:08]} (18. Nxe4 Qxd5 19. Rxf8+ Rxf8 20. Qxd5 Nxd5 $15) 18... Bxf8 {[%emt 0:01:43]} 19. Nxe4 {[%emt 0:19:19]} (19. axb4 $16 Nxc3 20. bxc3) 19... Nxd5 $11 {[%emt 0:04:05][%cal Od8h4]} (19... Qxd5 20. Qf3 Qxe6 21. axb4 $16) 20. Ng5 {[%emt 0:06:00]} (20. Bg5 $14 Be7 21. Qh5) 20... Qd6 {[%emt 0:07:21]} (20... Nf6 {simplifies} 21. Bf4 c4 22. Qxd8 Rxd8 23. Nf3 Bc5+) 21. Qe2 {[%emt 0:11:36] [#]} (21. Qf3 $11 {remains equal.} Be7 22. Qf7+ (22. Qf5 Nf6 $15) 22... Kh8 23. Qf5 Bxg5 24. Bxg5) 21... Re8 $1 $17 {[%emt 0:03:48]} 22. Qh5 {[%emt 0:00:39][%csl Gg5][%cal Rh5h7]} Nf6 {[%emt 0:00:46]} 23. Qf7+ {[%emt 0:00:04]} Kh8 {[%emt 0:00:26]} 24. Be3 {[%emt 0:00:07][%cal Of7e8] Qxe8! is the strong threat.} Qb8 {[%emt 0:05:08] aiming for ...Re7.} (24... h6 $2 25. Qxe8 Nxe8 26. Nf7+ Kg8 27. Nxd6 Bxd6 28. b4 $18) 25. Rf1 {[%emt 0:05:57] [#]} (25. e7 $17 Rxe7 26. Bf4) 25... Re7 $1 $19 {[%emt 0:01:48]} 26. Rxf6 {[%emt 0:00:05]} ({Don't blunder} 26. Bf4 $2 Qc8 27. Rd1 c4 $19) 26... Rxf7 {[%emt 0:00:04]} 27. Rxf7 {[%emt 0:00:05] Hoping for e7.} h6 {[%emt 0:03:38]} 28. Ne4 {[%emt 0:05:09]} Qe8 {[%emt 0:00:23]} (28... Kg8 $19 {White must now prevent ...Qe5.} 29. Rf5 Qd8) 29. Bxh6 $1 $11 {[%emt 0:00:16] The position is equal.} gxh6 {[%emt 0:07:26]} (29... Qd8 {feels hotter.} 30. Nf6 Qd6 31. e7 Qd4+) 30. Rh7+ {[%emt 0:00:20][%mdl 64] Decoy} Kxh7 {[%emt 0:00:12]} 31. Nf6+ {[%emt 0:00:02]} Kg6 {[%emt 0:00:11]} 32. Nxe8 {[%emt 0:00:05][%mdl 4096] Endgame KB-KN} Kf5 {[%emt 0:00:40]} 33. Nc7 {[%emt 0:00:44]} Kf6 {[%emt 0:00:36]} 34. g4 {[%emt 0:01:47]} Bd6 {[%emt 0:01:38]} 35. Ne8+ {[%emt 0:00:11]} Ke7 {[%emt 0:00:01]} 36. Nxd6 {[%emt 0:00:15]} Kxd6 {KP-KP} 37. Kf2 {[%emt 0:00:17]} Kxe6 {[%emt 0:00:06]} 38. Ke3 {[%emt 0:00:15]} Ke5 {[%emt 0:00:26]} 39. h4 {[%emt 0:00:04]} (39. a4 $5) 39... a6 {[%emt 0:02:14]} 40. g5 (40. a4 $5) 40... hxg5 {[%emt 0:00:00]} 41. hxg5 {[%emt 0:00:33] K3P-K3P} Kf5 {[%emt 0:00:24]} 42. g6 {[%emt 0:00:05][%mdl 64] Deflection} Kxg6 {[%emt 0:00:02] K3P-KPP} 43. Ke4 {[%emt 0:00:06]} c4 $1 {[%emt 0:04:48]} 44. Kd5 {[%emt 0:02:10]} Kf5 $1 {[%emt 0:00:20]} (44... b5 45. Kc6 Kf5 46. Kb6 Kg4 47. Kxa6 Kf5 48. Kxb5 Kf4 49. Kxc4) 45. Kc6 {[%emt 0:00:17]} Ke4 $1 {[%emt 0:01:47]} (45... b5 46. Kb6 Ke4 47. Kxa6 Kf5 48. Kxb5 Kg6 49. Kxc4 Kf7 50. a4) 46. Kxb6 {[%emt 0:00:08]} Kd3 $1 {[%emt 0:00:18]} 47. Kc5 {[%emt 0:00:03]} (47. Kxa6 $5 Kc2 $8 48. Kb5 Kxb2 49. Kxc4 Kxa3 $11) 47... Kc2 {[%emt 0:00:23]} 48. Kxc4 {[%emt 0:05:11] A fantastic game!   Weighted Error Value: White=0.30/Black=0.25 (precise)} 1/2-1/2

[Event "Polish Youth B18 Championship 2023"]
[Site "Jastrzebia Gora"]
[Date "2023.03.17"]
[Round "7.15"]
[White "Pieczulis, Blazej"]
[Black "Wilk, Igor"]
[Result "0-1"]
[ECO "D30"]
[WhiteElo "1784"]
[BlackElo "2058"]
[Annotator "TA"]
[PlyCount "80"]
[EventDate "2023.03.11"]
[EventType "swiss"]
[EventCountry "POL"]
[SourceTitle "playchess.com"]
[Source "ChessBase"]
[SourceQuality "1"]
[TimeControl "40/5400+30:1800+30"]

{[%evp 21,80,0,18,16,38,23,58,30,72,29,63,47,108,53,95,100,111,90,105,27,36,0,0,0,296,71,85,75,52,12,51,0,0,0,4,0,14,-21,43,35,108,-103,-58,-334,-331,-489,-445,-716,-595,-1043,-1006,-1020,-970,-1002,-998,-945,-923,-840,-785,-1898,-1896]} 1. d4 {[%emt 0:00:06]} d5 {[%emt 0:00:19]} 2. c4 {[%emt 0:00:18]} e6 {[%emt 0:00:09]} 3. Nf3 {[%emt 0:00:38]} Nf6 {[%emt 0:00:14]} 4. Bg5 {[%emt 0:00:59]} Be7 {[%emt 0:00:22]} 5. Nc3 {[%emt 0:01:00]} h6 {[%emt 0:00:11]} 6. Bh4 {[%emt 0:00:54]} O-O {[%emt 0:00:07]} 7. cxd5 {[%emt 0:01:57]} exd5 {[%emt 0:01:24]} 8. e3 {[%emt 0:00:13]} c6 {[%emt 0:04:34]} 9. Bd3 {[%emt 0:01:30]} Nbd7 {[%emt 0:02:42][%cal Bb8d7,Bd7f8,Bf8e6][%mdl 32]} 10. Qc2 {[%emt 0:04:05]} Re8 {[%emt 0:00:15]} 11. Bg3 {[%emt 0:06:08]} Nf8 {[%emt 0:04:38]} 12. O-O {[%emt 0:08:16] D36: Queen's Gambit Declined: Exchange Variation: Main line (5 Bg5 c6 6 Qc2).} Ne6 {[%emt 0:19:41]} 13. Rab1 {[%emt 0:07:03]} a5 {[%emt 0:05:51]} 14. a3 {[%emt 0:01:33] [#] White is slightly better.} Bd7 $146 {[%emt 0:06:25]} ({Predecessor:} 14... Bd6 15. Bh4 Nc7 16. h3 Bd7 17. e4 dxe4 18. Nxe4 Be7 19. Bxf6 gxf6 20. Ng3 Bf8 {1-0 Parligras,M (2560)-Vajda,A (2305) ROM-chT Oradea 2022 (5.10)}) 15. b4 {[%emt 0:08:07]} b5 {[%emt 0:01:37]} 16. Ne5 {[%emt 0:05:27]} Bf8 {[%emt 0:07:44]} (16... Qc8 $14) 17. f4 {[%emt 0:07:40]} (17. Bh4 $16 {[%cal Od3h7] Hoping for Bh7+!} Bd6 18. Bh7+ Kf8 19. Bf5) 17... Nc7 {[%emt 0:02:07]} 18. Bh4 {[%emt 0:14:27][%cal Od3h7]} Be7 {[%emt 0:03:04]} 19. h3 {[%emt 0:04:53]} Rf8 {[%emt 0:04:06]} 20. g4 {[%emt 0:03:49]} (20. bxa5 $16 Rxa5 21. Bxf6 Bxf6 22. a4) 20... Nfe8 {[%emt 0:00:50]} 21. g5 {[%emt 0:09:33]} Nd6 {[%emt 0:04:42]} 22. Qg2 {[%emt 0:03:21][%cal Og5h6] And now gxh6! would win.} h5 {[%emt 0:02:53][%mdl 8192] [#]} (22... hxg5 $11 23. Bxg5 (23. fxg5 axb4 24. axb4 Ra3 $11) 23... axb4 24. axb4 (24. Bh6 Bf6 $17) 24... Ra3) 23. Qe2 $2 {[%emt 0:04:17]} (23. f5 $1 $18 {[%cal Rf5f6] is the precise move to win.} f6 24. Nxd7 (24. gxf6 Bxf6 25. Bxf6 Rxf6 $16) 24... Qxd7 25. g6) 23... Bf5 $16 {[%emt 0:06:01]} 24. Nxc6 {[%emt 0:02:15]} Qe8 {[%emt 0:00:12]} 25. Ne5 {[%emt 0:00:54]} (25. Nxa5 {feels hotter.} Bxh3 26. Qxh5 g6 27. Qf3) 25... g6 {[%emt 0:00:29]} 26. Kh2 {[%emt 0:00:47]} (26. Bxf5 $14 Nxf5 27. Bf2) 26... Bxd3 $11 {[%emt 0:05:00]} 27. Qxd3 {[%emt 0:00:08]} Nc4 {[%emt 0:00:30]} 28. Nxc4 {[%emt 0:01:47]} bxc4 {[%emt 0:00:15]} 29. Qd2 {[%emt 0:00:29] [#] Strongly threatening b5.} axb4 {[%emt 0:01:08]} ({Black should play} 29... Nb5 $1 $11 30. Nxd5 Nxa3) 30. axb4 $14 {[%emt 0:00:02] b5 is the strong threat.} Qd7 {[%emt 0:01:20]} 31. Rf2 $2 {[%emt 0:00:55]} (31. b5 $16) 31... Rfb8 {[%emt 0:00:45][%mdl 1024] Black has strong compensation.} 32. Na2 $2 {[%emt 0:01:37][%mdl 8192]} (32. f5 $1 $15) 32... Nb5 {[%emt 0:01:06] White is weak on the light squares} 33. Qb2 {[%emt 0:01:07]} (33. Nc3 $142 Qf5 34. Rb2) 33... Ra3 $19 {[%emt 0:00:40] Black is clearly winning.} 34. Re2 {[%emt 0:00:15]} (34. Re1 $142 Rba8 35. Nc1) 34... Qf5 {[%emt 0:01:13]} 35. Be1 {[%emt 0:00:18]} Rb3 {[%emt 0:00:08]} 36. Qxb3 {[%emt 0:00:53]} cxb3 {[%emt 0:00:07]} 37. Rxb3 {[%emt 0:00:02]} Bd6 {[%emt 0:00:41]} 38. Nc1 {[%emt 0:00:30]} Qxg5 {[%emt 0:01:18]} 39. Nd3 {[%emt 0:00:27]} Qe7 {[%emt 0:00:38] ...Nxd4 would be deadly.} 40. Bg3 {[%emt 0:00:00]} Nxd4 {[%emt 0:00:00] What a bad dream for White.   Weighted Error Value: White=0.92/Black=0.36} 0-1

[Event "Polish Youth B18 Championship 2023"]
[Site "Jastrzebia Gora"]
[Date "2023.03.17"]
[Round "7.16"]
[White "Smetek, Michal"]
[Black "Syrkiewicz, Michal"]
[Result "1/2-1/2"]
[ECO "A40"]
[WhiteElo "1787"]
[BlackElo "2000"]
[Annotator "TA"]
[PlyCount "91"]
[EventDate "2023.03.11"]
[EventType "swiss"]
[EventCountry "POL"]
[SourceTitle "playchess.com"]
[Source "ChessBase"]
[SourceQuality "1"]
[TimeControl "40/5400+30:1800+30"]

{[%evp 17,91,0,14,0,47,44,59,48,53,54,60,64,62,61,68,55,62,54,66,58,79,73,120,120,198,200,177,174,229,225,216,218,256,239,228,246,302,301,281,276,370,362,379,375,698,653,642,638,576,594,600,585,1677,1670,1311,1192,893,147,143,0,0,0,0,0,0,0,0,0,0,0,0,0,0,0,0,0]} 1. d4 {[%emt 0:00:02]} Nf6 {[%emt 0:00:09]} 2. c4 {[%emt 0:00:26]} e6 {[%emt 0:00:04]} 3. g3 {[%emt 0:00:03]} d5 {[%emt 0:00:07]} 4. Nf3 {[%emt 0:00:06]} Bb4+ {[%emt 0:00:10]} 5. Bd2 {[%emt 0:00:10]} Be7 {[%emt 0:00:05]} 6. Bg2 {[%emt 0:00:11]} c6 {[%emt 0:00:28]} 7. O-O {[%emt 0:00:15]} O-O {[%emt 0:00:04]} 8. Qc2 {[%emt 0:00:31]} Nbd7 {[%emt 0:00:49]} 9. Bf4 {[%emt 0:02:57]} a5 {[%emt 0:00:35]} 10. Nbd2 {[%emt 0:01:05] E08: Closed Catalan: Main Line: 7 Qc2.} b6 {[%emt 0:08:41]} (10... Nh5 $11 {was preferrable.}) 11. e4 $14 {[%emt 0:08:39]} dxe4 {[%emt 0:05:50]} 12. Nxe4 {[%emt 0:01:08] White is slightly better.} Nxe4 {[%emt 0:03:57]} 13. Qxe4 {[%emt 0:00:07]} Ba6 {[%emt 0:00:49]} 14. Rac1 {[%emt 0:04:31][%cal Ba1c1,Bc1c3,Bc3f3][%mdl 32]} ({Don't play} 14. Qxc6 Rc8 15. Qe4 Nf6 $15) 14... Rc8 {[%emt 0:08:33]} 15. Rfd1 {[%emt 0:02:25] [#]} h6 $146 {[%emt 0:04:28]} ({Predecessor:} 15... Nf6 16. Qc2 b5 17. Ne5 bxc4 18. Nxc6 Qd7 19. Qa4 Nd5 20. Nxe7+ Qxe7 21. Qxa5 Bb7 {0-1 Barp,A (2366)-Prithu,G (2472) Titled Tuesday intern op 01st Dec blitz 2020 (8)}) 16. Ne5 {[%emt 0:12:37] White has more active pieces.} Nxe5 {[%emt 0:11:17]} 17. Bxe5 {[%emt 0:06:54]} Bg5 {[%emt 0:10:40]} 18. Rc3 {[%emt 0:07:28]} b5 {[%emt 0:12:29]} 19. h4 {[%emt 0:03:06]} b4 {[%emt 0:02:03]} (19... Bf6 $142) 20. Rf3 $36 {[%emt 0:05:34][%mdl 2048] Black is under strong pressure.} f5 {[%emt 0:03:12]} (20... Bf6 $16 {was called for.}) 21. Qe2 $18 {[%emt 0:02:47]} Bf6 {[%emt 0:00:25]} 22. Re3 {[%emt 0:01:03]} Re8 {[%emt 0:01:29]} (22... Qd7 {was necessary.} 23. Bxf6 {[%mdl 64] Discovered Attack} Rxf6) 23. Bxf6 {[%emt 0:01:41]} Qxf6 {[%emt 0:00:14]} 24. Re5 {[%emt 0:00:10]} c5 {[%emt 0:04:27]} 25. Rxc5 {[%emt 0:03:10]} (25. dxc5 Bxc4 26. Qe3 Bxa2 $14) 25... Rxc5 {[%emt 0:01:59]} 26. dxc5 {[%emt 0:00:08]} Kh7 {[%emt 0:01:16] Black is weak on the light squares} 27. Rd6 {[%emt 0:01:23]} Bc8 {[%emt 0:00:05]} 28. f4 {[%emt 0:07:49]} Rd8 {[%emt 0:02:24]} 29. Qe5 {[%emt 0:01:02]} Qe7 {[%emt 0:00:08]} 30. b3 {[%emt 0:00:56]} Kg6 $2 {[%emt 0:00:53]} (30... Rf8 31. Bf3 Re8) 31. Rxd8 {[%emt 0:03:09]} Qxd8 {[%emt 0:00:08][%mdl 4096] Endgame KQB-KQB} 32. Qd6 {[%emt 0:00:37]} Qf6 {[%emt 0:00:14]} 33. Kh2 {[%emt 0:00:12]} Kh5 {[%emt 0:01:28]} 34. Qc7 {[%emt 0:02:47]} Ba6 {[%emt 0:00:32]} 35. Qc6 {[%emt 0:01:56]} g5 {[%emt 0:00:26]} 36. hxg5 {[%emt 0:02:22]} hxg5 {[%emt 0:00:03]} 37. fxg5 $2 {[%emt 0:00:49]} (37. Qxa6 $18 a4 38. Qd6 axb3 39. axb3) 37... Kxg5 $16 {[%emt 0:00:03]} 38. Qxa6 {[%emt 0:00:19]} ({White should try} 38. Qe8 $16) 38... Qh8+ $11 {[%emt 0:00:09] The position is equal.} 39. Bh3 {[%emt 0:03:56][%cal Oa6d6]} Qb2+ {[%emt 0:01:16]} 40. Kg1 {[%emt 0:00:00] [#] Qd6 is the strong threat.} Qd4+ {[%emt 0:00:00]} 41. Kh1 {[%emt 0:06:31] aiming for Qd6.} Qa1+ {[%emt 0:01:25]} 42. Kh2 {[%emt 0:00:12]} Qb2+ $1 {[%emt 0:00:11]} 43. Bg2 {[%emt 0:01:34]} Qh8+ {[%emt 0:00:08]} 44. Kg1 {[%emt 0:02:33][%cal Oa6d6] [#] Threatens to win with Qd6!} Qd4+ {[%emt 0:00:24]} 45. Kh2 {[%emt 0:02:58]} Qh8+ {[%emt 0:00:37]} 46. Bh3 {[%emt 0:00:02] White really could win this.   Weighted Error Value: White=0.23 (precise) /Black=0.29 (precise)} 1/2-1/2